bitfinex-derivatives/quotes_ETHF0:USTF0_20251013
["timestamp","ask_amount","ask_price","bid_price","bid_amount"]
[1760371385680,3.88903,4141.5,4141.2,0.5876]
[1760371385981,0.5884,4141.4,4139.5,0.5876]
[1760371386184,0.5884,4141.4,4139.4,0.195236]
[1760371386185,0.5884,4139.5,4139.4,0.195236]
[1760371386381,0.8354,4139.5,4139.4,0.195236]
[1760371386882,1.26985,4139.5,4139.3,0.43446]
[1760371387276,0.8354,4139.5,4139.1,0.43447]
[1760371387479,0.8354,4139.5,4139.3,0.43446]
[1760371388379,0.43451,4138.8,4138.6,0.00185512]
[1760371388681,0.8354,4138.7,4138.6,0.00185512]
[1760371390183,3.92237467,4138.7,4138.6,0.00185512]
[1760371390773,3.67537467,4138.7,4138.6,0.00185512]
[1760371390979,3.7962,4139.0,4138.7,0.43452]
[1760371391176,3.2078,4139.5,4139.4,0.43445]
[1760371391378,0.5884,4139.9,4139.5,0.43443]
[1760371391677,0.5884,4139.9,4139.1,0.5876]
[1760371391678,0.247,4139.8,4139.2,0.5876]
[1760371391877,0.247,4139.8,4139.7,0.43441]
[1760371392074,0.247,4139.8,4139.5,1.02203]
[1760371392277,0.247,4139.8,4139.6,1.02202]
[1760371392474,0.247,4139.8,4139.7,0.5876]
[1760371392782,3.2078,4140.5,4140.3,0.43435]
[1760371392984,0.247,4140.7,4140.6,0.5876]
[1760371393380,3.2078,4141.0,4140.8,0.43429]
[1760371393683,0.24895042,4141.4,4141.2,0.43425]
[1760371393883,0.24895042,4141.4,4141.3,0.5876]
[1760371394384,0.24895042,4141.4,4141.2,0.43426]
[1760371394579,0.24895042,4141.4,4141.2,1.02186]
[1760371394784,0.24895042,4141.4,4141.2,0.43426]
[1760371395283,0.68319042,4141.4,4141.2,0.43426]
[1760371395787,0.00195042,4141.4,4141.3,0.5876]
[1760371398887,0.00195042,4141.4,4141.2,0.43426]
[1760371398888,3.2078,4142.0,4141.9,0.43419]
[1760371399083,3.2078,4142.0,4141.9,0.5876]
[1760371400103,0.00176502,4142.0,4141.9,0.58992546]
[1760371400390,3.2078,4143.0,4142.9,1.02168]
[1760371400589,3.2078,4143.0,4142.9,1.26868]
[1760371401185,3.20962213,4143.0,4142.9,1.26868]
[1760371403188,0.00182213,4143.0,4142.9,4.47648]
[1760371403487,0.152,4144.0,4142.9,4.47648]
[1760371403488,0.43397,4144.0,4143.4,0.5273]
[1760371403697,0.43399,4143.8,4143.7,0.5273]
[1760371404286,0.43596707,4143.8,4143.7,0.5273]
[1760371405386,0.00197707,4143.8,4143.7,0.5273]
[1760371405986,0.00197707,4143.8,4143.5,0.2179]
[1760371405987,3.2078,4144.8,4144.5,0.2179]
[1760371406188,3.2078,4144.8,4144.7,0.96119]
[1760371406788,0.22,4145.3,4145.2,0.43384]
[1760371406989,0.22255302,4145.3,4145.2,0.96321311]
[1760371413296,3.86754531,4145.3,4145.2,0.00207311]
[1760371415204,0.43394,4144.3,4143.8,0.246]
[1760371415503,3.2078,4144.9,4144.3,0.43393]
[1760371415796,3.2078,4144.9,4144.0,3.4257]
[1760371415797,0.5543,4144.5,4144.2,0.246]
[1760371415994,0.5543,4144.3,4144.2,0.246]
[1760371416198,0.5543,4144.3,4143.5,3.2078]
[1760371416407,0.43403,4143.4,4143.0,3.2078]
[1760371416600,0.5543,4143.3,4143.0,3.2078]
[1760371416903,3.7621,4143.7,4143.1,0.5273]
[1760371417103,0.43403,4143.5,4143.0,3.2078]
[1760371417304,0.43404,4143.4,4143.0,3.73742603]
[1760371417504,0.5543,4143.3,4143.1,0.43406]
[1760371417704,0.5543,4143.5,4143.1,0.43406]
[1760371417902,0.98832,4143.5,4143.1,0.96136]
[1760371418203,0.98833,4143.4,4143.0,3.73742603]
[1760371418505,3.19484256,4143.6,4143.2,0.5273]
[1760371418710,3.19484256,4143.6,4143.3,0.96134]
[1760371418903,3.2078,4143.7,4143.4,0.5273]
[1760371418904,3.6418,4143.7,4143.4,0.5273]
[1760371419103,0.5543,4143.5,4143.0,3.21012603]
[1760371419306,0.5543,4143.2,4143.0,0.00232603]
[1760371419607,0.98836,4143.1,4143.0,0.00232603]
[1760371419808,4.08150022,4143.1,4143.0,0.00232603]
[1760371420009,0.98836,4143.1,4143.0,0.00232603]
[1760371420508,4.08150022,4143.1,4143.0,0.00232603]
[1760371423904,4.08150022,4143.1,4143.0,0.52962603]
[1760371423905,3.52720022,4143.1,4143.0,0.52962603]
[1760371424210,4.08150022,4143.1,4143.0,0.00232603]
[1760371426104,3.64744022,4143.1,4143.0,0.00232603]
[1760371427709,4.08150022,4143.1,4143.0,0.00232603]
[1760371429115,4.64081067,4143.1,4143.0,0.00232603]
[1760371429315,4.08150022,4143.1,4143.0,0.00232603]
[1760371429613,1.08505,4143.6,4143.0,0.00232603]
[1760371429614,0.43403,4143.4,4143.1,0.5731]
[1760371429820,0.577,4143.2,4143.0,0.43639603]
[1760371430206,1.01105,4143.2,4143.0,0.43639603]
[1760371430405,1.01106,4143.1,4143.0,0.00232603]
[1760371431002,0.577,4143.1,4143.0,0.43639603]
[1760371431712,1.01106,4143.1,4143.0,0.00232603]
[1760371431913,0.577,4143.1,4143.0,0.00232603]
[1760371433717,1.01106,4143.1,4143.0,0.00232603]
[1760371433941,0.577,4143.1,4143.0,0.00232603]
[1760371434314,1.01106,4143.1,4143.0,0.00232603]
[1760371434619,0.577,4143.1,4143.0,0.43639603]
[1760371435114,0.577,4143.1,4143.0,0.00232603]
[1760371435115,1.01106,4143.1,4143.0,0.00232603]
[1760371435613,0.43405,4143.2,4143.0,0.54572603]
[1760371435812,4.82982,4143.7,4143.0,0.54572603]
[1760371435813,0.246,4143.5,4143.1,0.43406]
[1760371436115,1.0849,4144.2,4143.1,0.43406]
[1760371436116,3.09368653,4143.2,4143.1,4.18526]
[1760371436317,0.537,4144.1,4143.3,0.5434]
[1760371436512,0.61337,4144.0,4143.1,3.4538]
[1760371436819,0.537,4143.8,4143.7,0.434]
[1760371437034,0.537,4144.0,4143.8,0.43399]
[1760371437321,3.20896131,4144.1,4143.7,0.43399]
[1760371437523,0.537,4144.0,4143.7,0.5434]
[1760371437819,3.88776,4144.2,4143.3,0.5434]
[1760371437820,3.68148937,4144.1,4143.3,0.5434]
[1760371438014,0.537,4143.7,4143.5,0.43402]
[1760371438205,0.537,4143.7,4143.1,3.4538]
[1760371438206,0.43401,4143.7,4143.4,0.43403]
[1760371438409,0.537,4143.6,4143.4,0.97743]
[1760371438715,0.537,4143.9,4143.7,0.43399]
[1760371438910,0.537,4144.1,4143.5,0.43402]
[1760371439220,0.537,4144.1,4143.1,3.4538]
[1760371439221,0.97099,4143.8,4143.2,0.5434]
[1760371439516,0.43399,4143.8,4143.5,0.43402]
[1760371439706,0.43402,4143.5,4143.1,3.88785]
[1760371439913,0.43402,4143.5,4143.2,0.43405]
[1760371440126,0.537,4143.4,4143.2,0.43405]
[1760371440422,0.246,4144.0,4143.6,0.97741]
[1760371440810,0.537,4143.8,4143.6,0.97741]
[1760371441010,0.537,4143.8,4143.7,0.5434]
[1760371441411,0.537,4143.9,4143.4,0.43402]
[1760371441717,0.434,4143.7,4143.5,0.43402]
[1760371441913,0.537,4143.6,4143.5,0.43402]
[1760371442108,0.537,4143.7,4143.1,3.4538]
[1760371442308,0.434,4143.7,4143.1,3.4538]
[1760371442515,0.434,4143.7,4143.1,3.9972]
[1760371442814,0.4254,4144.0,4143.5,0.43403]
[1760371443012,0.4254,4144.0,4143.0,0.00232603]
[1760371443013,0.4341,4143.1,4143.0,0.00232603]
[1760371443315,4.09654564,4143.1,4143.0,0.00232603]
[1760371443519,4.65812387,4143.1,4143.0,0.00232603]
[1760371443818,4.65812621,4143.1,4143.0,0.00232603]
[1760371444621,0.537,4142.9,4141.9,0.246]
[1760371444826,0.7164,4142.0,4141.9,0.246]
[1760371445034,3.2078,4142.0,4141.9,0.43423]
[1760371445315,0.246,4142.6,4142.4,0.5434]
[1760371445514,0.56202547,4142.5,4142.4,0.5434]
[1760371445814,3.69226874,4142.5,4142.4,0.54581842]
[1760371446019,5.79e-06,4142.6,4142.5,1.20607]
[1760371446219,0.537,4144.3,4143.2,1.08524]
[1760371446421,0.537,4144.1,4143.9,0.43402]
[1760371446612,3.10513979,4144.1,4143.9,0.97742]
[1760371446815,3.2078,4145.2,4145.1,0.4339]
[1760371447023,3.2078,4145.2,4145.1,0.9773]
[1760371447225,0.00186774,4145.2,4145.1,0.4339]
[1760371447431,0.00186774,4145.2,4145.1,3.6417]
[1760371447918,0.00186774,4145.2,4145.1,4.1851]
[1760371448127,0.537,4146.4,4145.1,4.1851]
[1760371448322,0.97076,4146.4,4145.2,0.5434]
[1760371448623,3.2078,4146.2,4145.2,0.5434]
[1760371449223,0.22241148,4145.3,4145.2,0.5434]
[1760371449623,3.2078,4146.7,4145.5,0.2285]
[1760371449916,0.55979335,4146.6,4145.8,0.5434]
[1760371450115,3.16317967,4146.5,4145.8,0.5434]
[1760371450326,3.16317967,4146.6,4146.3,0.43377]
[1760371450523,0.53952038,4146.6,4146.3,0.97926699]
[1760371450723,3.163581,4146.4,4146.3,0.97926699]
[1760371450923,3.16610138,4146.6,4146.4,0.43375]
[1760371451119,0.00252038,4146.6,4146.5,0.5434]
[1760371452324,0.53952038,4146.6,4146.4,0.43375]
[1760371452723,0.53952038,4146.6,4145.1,3.2078]
[1760371452724,0.537,4146.4,4145.1,3.2078]
[1760371452924,3.30912317,4146.5,4144.6,0.246]
[1760371452925,3.2078,4145.3,4144.6,0.246]
[1760371453223,3.12972317,4145.2,4144.6,0.246]
[1760371453418,3.7448,4144.8,4144.3,0.43397]
[1760371453631,3.66672317,4145.2,4144.4,0.5434]
[1760371453822,3.2078,4145.3,4144.7,0.5434]
[1760371454022,3.18555113,4145.1,4144.7,0.246]
[1760371454222,0.43395,4144.6,4144.4,0.00255669]
[1760371454419,0.537,4144.5,4144.4,0.00255669]
[1760371454721,3.64713082,4144.5,4144.4,0.00255669]
[1760371454929,3.9908,4145.6,4144.9,0.43391]
[1760371455128,3.9908,4145.6,4144.8,0.5434]
[1760371455129,4.17865,4145.6,4145.0,0.4339]
[1760371455330,3.11013082,4145.4,4145.1,0.5434]
[1760371455526,3.11013082,4145.5,4144.7,0.5434]
[1760371455829,3.64165,4145.6,4144.7,0.5434]
[1760371456026,3.12091677,4145.5,4145.1,0.43389]
[1760371456218,0.537,4145.4,4145.1,0.43389]
[1760371456623,0.537,4145.2,4145.1,0.43389]
[1760371456934,3.11897971,4145.4,4145.2,0.43387]
[1760371457332,0.537,4145.4,4144.8,0.246]
[1760371457533,0.537,4144.9,4144.8,0.246]
[1760371459536,8.6773118,4151.0,4145.1,0.43388]
[1760371459537,3.2078,4145.6,4145.1,0.43388]
[1760371459747,3.2078,4145.6,4144.8,0.246]
[1760371459748,0.537,4145.4,4144.8,0.246]
[1760371459942,3.11321073,4144.9,4144.8,0.246]
[1760371460138,3.2078,4145.0,4144.9,0.5434]
[1760371460441,6.32101073,4145.0,4144.9,0.5434]
[1760371461035,3.11321073,4145.0,4144.8,0.67992]
[1760371461535,3.2078,4145.5,4145.4,0.43386]
[1760371461834,3.2078,4145.5,4145.4,0.97726]
[1760371462229,3.2078,4145.5,4145.4,1.22326]
[1760371462961,0.00252038,4146.6,4146.0,0.8019]
[1760371463236,0.00252038,4146.6,4146.5,1.00435]
[1760371464039,0.00252038,4146.6,4146.5,1.23565]
[1760371464542,0.00252038,4146.6,4146.5,1.00435]
[1760371465043,0.00252038,4146.6,4146.4,0.43375]
[1760371465438,0.00252038,4146.6,4146.5,0.5706]
[1760371465740,0.97756038,4146.6,4146.0,0.4773]
[1760371465933,0.54382038,4146.6,4146.4,0.43376]
[1760371466137,0.00252038,4146.6,4146.4,0.43376]
[1760371466642,0.00252038,4146.6,4146.5,0.8019]
[1760371468341,0.00252038,4146.6,4146.4,0.246]
[1760371468342,0.5413,4146.5,4146.4,0.246]
[1760371468538,0.5413,4146.5,4145.9,3.2078]
[1760371468739,0.5413,4146.3,4145.9,3.2078]
[1760371468941,3.52812607,4146.5,4145.9,3.2078]
[1760371468942,3.69552607,4146.5,4145.9,3.2078]
[1760371469144,0.00252038,4146.6,4146.5,1.00435]
[1760371469740,0.00252038,4146.6,4146.5,0.5706]
[1760371470436,0.00252038,4146.6,4146.5,0.8019]
[1760371470637,0.00252038,4146.6,4146.5,0.5706]
[1760371471342,0.00252038,4146.6,4146.4,0.43376]
[1760371471548,0.43379,4146.2,4145.9,3.2078]
[1760371471840,0.1508,4146.5,4145.5,0.5706]
[1760371471841,3.71127859,4146.1,4145.5,0.5706]
[1760371472345,0.97509,4146.1,4145.5,0.2313]
[1760371472644,3.16997859,4146.0,4145.8,1.00442]
[1760371473247,3.16997859,4146.0,4145.9,0.43381]
[1760371474042,3.16997859,4146.0,4145.8,1.00442]
[1760371474246,0.5413,4145.9,4145.8,0.43382]
[1760371474447,3.16997859,4146.0,4145.9,0.43381]
[1760371474744,0.5413,4145.9,4145.7,0.43382]
[1760371474953,0.97511,4145.9,4145.5,0.66514]
[1760371475136,0.97511,4145.9,4145.6,0.43384]
[1760371475335,0.5413,4145.9,4145.8,0.43382]
[1760371475543,0.5413,4145.9,4145.8,1.00442]
[1760371475740,0.4338,4146.1,4145.8,1.00442]
[1760371475741,0.9751,4146.1,4145.8,1.00442]
[1760371475943,0.4338,4146.1,4145.8,1.00442]
[1760371476140,0.246,4146.4,4145.8,1.00442]
[1760371476141,3.52998656,4146.0,4145.8,0.43382]
[1760371476340,0.43382,4145.9,4145.7,0.43383]
[1760371476652,0.5413,4145.8,4145.7,0.43383]
[1760371476842,0.5413,4146.1,4145.5,1.56193]
[1760371477037,0.5413,4146.1,4146.0,0.4338]
[1760371477237,0.5413,4146.2,4145.5,0.246]
[1760371477468,0.43383,4145.8,4145.5,0.246]
[1760371477742,0.5413,4145.7,4145.5,0.246]
[1760371477948,0.5413,4146.1,4145.9,0.43381]
[1760371478150,3.19897959,4145.9,4145.8,1.00442]
[1760371478352,3.2078,4146.2,4146.0,0.2313]
[1760371478647,0.43375,4146.5,4146.2,0.43378]
[1760371478850,1.53054994,4146.4,4146.2,1.00438]
[1760371479150,3.13028922,4146.5,4146.4,1.00436]
[1760371479450,0.022,4147.8,4146.5,0.8019]
[1760371479651,0.022,4147.8,4147.5,0.2313]
[1760371479852,0.022,4147.8,4147.7,1.00422]
[1760371480648,0.022,4147.8,4147.7,0.68156037]
[1760371480849,0.02511931,4147.8,4147.7,1.25216037]
[1760371481352,0.02511931,4147.8,4147.7,4.45996037]
[1760371481656,9.31e-06,4147.8,4147.7,4.45996037]
[1760371481852,3.7491,4149.4,4149.0,1.00408]
[1760371482047,0.55431824,4149.3,4149.0,1.00408]
[1760371482250,3.06993923,4149.3,4149.0,0.5706]
[1760371482644,0.5413,4149.2,4149.0,0.5706]
[1760371482849,0.5413,4149.2,4148.9,0.246]
[1760371482850,0.43538502,4149.2,4148.9,0.246]
[1760371483059,0.5413,4149.1,4148.9,0.246]
[1760371483357,0.5413,4149.1,4148.9,0.8166]
[1760371483747,0.43349,4149.0,4148.9,0.246]
[1760371484047,4.31257307,4149.0,4148.9,0.246]
[1760371484247,1.12559,4149.0,4148.9,0.246]
[1760371484551,4.31257307,4149.0,4148.9,0.246]
[1760371485450,0.5413,4148.8,4148.4,0.43355]
[1760371485649,0.5413,4148.7,4148.4,0.43355]
[1760371485851,0.5413,4148.7,4148.2,0.246]
[1760371485852,0.43352,4148.7,4148.2,0.246]
[1760371486057,0.43352,4148.7,4147.9,3.7784]
[1760371486058,0.43358,4148.2,4147.9,3.4538]
[1760371486249,0.43358,4148.2,4147.9,3.8874]
[1760371486556,0.5413,4148.1,4147.9,3.4538]
[1760371486855,3.06601793,4148.1,4147.8,0.5706]
[1760371487043,3.49960793,4148.1,4147.7,0.00194037]
[1760371487352,3.2078,4148.4,4147.7,0.24794037]
[1760371487353,0.5413,4147.9,4147.7,0.24794037]
[1760371487655,0.5413,4147.9,4147.7,0.80924037]
[1760371488054,3.66883781,4147.8,4147.7,0.00194037]
[1760371489859,3.09013781,4147.8,4147.7,0.56324037]
[1760371490760,0.5787,4148.8,4148.5,0.5613]
[1760371490960,3.2078,4148.9,4148.3,0.246]
[1760371491253,0.5787,4147.8,4147.7,0.00194037]
[1760371491454,3.7865,4147.8,4147.2,0.00725]
[1760371491662,0.5787,4147.3,4147.2,0.00725]
[1760371492060,3.70808098,4147.3,4147.2,0.00725]
[1760371492560,3.12938098,4147.3,4147.2,0.00980491]
[1760371492954,0.5447,4147.4,4147.2,0.44347491]
[1760371493460,3.0709564,4147.3,4147.2,0.44347491]
[1760371493662,3.6156564,4147.3,4147.2,0.44347491]
[1760371493859,0.5447,4147.3,4147.2,0.44347491]
[1760371494059,3.7321953,4147.3,4147.2,0.44347491]
[1760371494460,3.1874953,4147.3,4147.2,1.01457491]
[1760371494860,3.61778713,4147.5,4147.2,1.01457491]
[1760371495260,3.07308713,4147.3,4147.2,1.01457491]
[1760371495464,3.07308713,4147.4,4147.2,1.01457491]
[1760371495668,0.43364,4147.6,4147.2,1.01457491]
[1760371495964,3.5870296,4147.5,4147.2,1.01457491]
[1760371496166,0.5447,4147.3,4147.2,0.00980491]
[1760371496469,3.6980796,4147.3,4147.2,0.00980491]
[1760371496964,0.246,4147.7,4147.2,1.01457491]
[1760371497167,0.43365,4147.5,4147.2,0.00980491]
[1760371497363,0.43366,4147.4,4147.2,0.00980491]
[1760371497563,0.5447,4147.3,4147.2,0.00980491]
[1760371498066,6.88247748,4147.3,4147.2,0.00980491]
[1760371498362,0.6955,4147.0,4146.2,3.2078]
[1760371498664,0.43375,4146.5,4146.2,3.2078]
[1760371498868,1.33039,4146.5,4145.7,3.2078]
[1760371499066,0.5447,4145.8,4145.7,3.2078]
[1760371499367,0.5447,4145.8,4144.5,1.30468]
[1760371499368,3.13750862,4145.8,4145.6,0.43384]
[1760371499562,3.68462571,4145.8,4145.7,0.00283173]
[1760371500355,3.13992571,4145.8,4145.7,0.57393173]
[1760371500556,0.00241709,4145.8,4145.7,0.57393173]
[1760371501072,0.54711709,4145.8,4145.7,0.00283173]
[1760371501569,0.00241709,4145.8,4145.7,0.57393173]
[1760371502364,3.65535373,4145.8,4145.7,0.00283173]
[1760371502571,0.1508,4145.5,4144.4,0.43396]
[1760371502758,0.5447,4144.8,4144.6,0.43394]
[1760371502965,0.246,4145.3,4144.7,3.64173]
[1760371503172,0.5447,4145.6,4145.0,0.5711]
[1760371503368,0.5447,4145.6,4145.0,0.4339]
[1760371503369,3.12198503,4145.2,4145.0,0.4339]
[1760371503564,3.12198503,4145.3,4145.0,0.00195414]
[1760371503871,0.246,4145.7,4145.0,0.00195414]
[1760371503872,6.35825089,4145.4,4145.0,0.00195414]
[1760371504071,0.5447,4145.1,4145.0,0.00195414]
[1760371504259,0.246,4145.7,4145.0,0.00195414]
[1760371504260,0.67986,4145.5,4145.1,0.5711]
[1760371504571,3.15045089,4145.3,4145.1,1.00499]
[1760371504967,0.43388,4145.2,4145.0,0.00195414]
[1760371505163,0.00241709,4145.8,4145.0,0.00195414]
[1760371505360,0.97854,4145.7,4145.3,0.5711]
[1760371505562,3.1552384,4145.4,4145.3,0.5711]
[1760371505762,0.43386,4145.5,4145.0,0.43585414]
[1760371505962,0.5447,4145.4,4145.0,1.00695414]
[1760371506169,0.5447,4145.4,4145.1,0.43389]
[1760371506170,3.10623053,4145.4,4145.1,0.43389]
[1760371506462,3.10623053,4145.4,4145.0,0.00195414]
[1760371506463,0.00241709,4145.8,4145.2,3.2078]
[1760371506659,0.97858,4145.2,4145.0,0.00195414]
[1760371506871,0.5447,4145.1,4145.0,0.00195414]
[1760371507059,3.62670902,4145.1,4145.0,0.00195414]
[1760371508163,3.62670902,4145.1,4143.8,0.5711]
[1760371508164,1.0848,4144.9,4143.8,3.2078]
[1760371508365,0.5447,4143.9,4143.3,0.8181]
[1760371508574,1.62976,4143.9,4143.2,3.2078]
[1760371508872,0.1279,4144.0,4142.9,0.247]
[1760371508873,3.3586,4143.5,4142.9,0.247]
[1760371509065,3.2078,4143.5,4143.2,0.5711]
[1760371509266,3.13820476,4143.9,4143.6,0.43405]
[1760371509575,3.2078,4144.4,4144.3,0.5711]
[1760371509576,6.34600476,4144.4,4144.3,0.5711]
[1760371509775,3.13820476,4144.4,4144.3,0.5711]
[1760371510082,0.5447,4145.2,4144.9,0.43392]
[1760371510270,0.5447,4145.3,4145.1,0.43389]
[1760371510563,0.5447,4145.3,4145.2,0.43388]
[1760371510874,0.00241709,4145.8,4144.8,3.7789]
[1760371510875,0.5447,4145.7,4145.4,0.43386]
[1760371511269,3.1818013,4145.7,4145.4,0.43386]
[1760371511462,0.5447,4145.6,4145.4,0.43386]
[1760371511667,0.5447,4145.6,4145.5,0.43385]
[1760371511865,0.5447,4145.4,4145.1,0.68089]
[1760371512268,3.64769266,4145.3,4145.2,0.43388]
[1760371512566,0.5447,4145.3,4145.2,0.43388]
[1760371512770,3.10299266,4145.4,4145.2,1.00498]
[1760371512969,0.5447,4145.7,4145.4,0.43386]
[1760371513167,0.1279,4145.5,4145.1,0.247]
[1760371513373,0.5447,4144.9,4144.2,3.2078]
[1760371513573,0.5447,4144.6,4144.3,0.68098]
[1760371513771,0.43394,4144.7,4144.3,0.68098]
[1760371513772,0.43394,4144.7,4144.3,0.43398]
[1760371513973,3.84053852,4144.5,4144.2,3.64179]
[1760371514271,0.43399,4144.2,4144.1,0.247]
[1760371514572,0.58481,4144.0,4143.7,3.64184]
[1760371514776,0.43402,4143.9,4143.7,3.2078]
[1760371515076,0.5447,4143.8,4143.7,3.2078]
[1760371515673,3.66901189,4143.8,4143.7,3.2078]
[1760371515866,0.97874,4143.7,4143.6,0.247]
[1760371516073,0.97874,4143.7,4142.9,0.00241122]
[1760371516074,0.43409,4143.2,4142.9,0.00241122]
[1760371516371,0.1279,4143.5,4141.9,1.08558]
[1760371516372,0.97883,4142.9,4142.8,3.826e-05]
[1760371516575,1.16597,4142.5,4141.9,0.247]
[1760371516775,0.5447,4142.4,4141.9,0.68122]
[1760371516976,0.5447,4142.3,4141.9,0.247]
[1760371517171,3.64076233,4142.4,4142.0,0.43422]
[1760371517371,0.5447,4142.1,4142.0,0.43719643]
[1760371517874,0.00182912,4142.4,4142.3,0.5711]
[1760371518078,3.7525,4143.6,4143.5,0.43406]
[1760371518278,3.2078,4143.6,4143.3,0.43408]
[1760371518573,0.5447,4143.5,4143.0,3.4548]
[1760371518776,0.5447,4143.4,4143.3,0.43407]
[1760371518975,0.54754029,4143.4,4143.3,0.43407]
[1760371519174,3.19787715,4143.4,4143.3,1.00517]
[1760371519367,0.00284029,4143.4,4143.3,1.00517]
[1760371519572,0.00284029,4143.4,4143.1,0.247]
[1760371519573,0.5447,4144.8,4144.7,0.43393]
[1760371519772,0.5447,4145.2,4144.9,0.43392]
[1760371519974,0.5447,4145.8,4145.1,0.5711]
[1760371520181,3.7525,4146.4,4145.5,3.2078]
[1760371520378,3.7525,4146.4,4146.2,0.43377]
[1760371520580,0.5447,4146.3,4145.6,0.8181]
[1760371520878,3.18159882,4146.2,4145.8,0.5711]
[1760371521082,3.18159882,4146.2,4145.7,0.247]
[1760371521083,3.18159882,4146.2,4146.1,1.00489]
[1760371521377,0.00312447,4146.4,4146.3,1.00487]
[1760371522282,0.00312447,4146.4,4146.3,0.43377]
[1760371522481,0.00312447,4146.4,4146.3,0.97837]
[1760371524375,0.00312447,4146.4,4146.3,0.43377]
[1760371524876,0.00312447,4146.4,4145.6,1.0846]
[1760371524877,0.43689447,4146.4,4145.9,0.43381]
[1760371525084,0.43689447,4146.4,4145.5,3.43029265]
[1760371525085,0.00312447,4146.4,4146.1,0.43378]
[1760371525278,0.5502,4146.3,4146.1,0.43378]
[1760371525673,0.00312447,4146.4,4146.0,3.4548]
[1760371525980,0.00312447,4146.4,4146.1,0.5446]
[1760371525981,3.10355401,4146.2,4146.1,0.5446]
[1760371526174,0.00312447,4146.4,4146.3,0.5446]
[1760371527483,0.00312447,4146.4,4146.2,0.43378]
[1760371527678,0.00312447,4146.4,4146.2,0.97838]
[1760371527879,0.00312447,4146.4,4146.3,0.5446]
[1760371528283,0.00312447,4146.4,4146.0,3.4397]
[1760371528483,0.00312447,4146.4,4146.3,0.5446]
[1760371531894,0.022,4147.8,4147.7,0.43362]
[1760371532092,0.022,4147.8,4147.7,1.22522]
[1760371532601,3.2078,4148.7,4147.7,3.4548]
[1760371532791,0.00212876,4148.7,4148.3,0.5446]
[1760371532996,0.00212876,4148.7,4148.6,0.5446]
[1760371533287,0.00212876,4148.7,4148.6,0.54736861]
[1760371533993,0.00212876,4148.7,4148.6,0.00276861]
[1760371534191,0.00212876,4148.7,4148.6,0.54736861]
[1760371534384,0.00212876,4148.7,4148.6,0.00276861]
[1760371534886,0.55232876,4148.7,4148.6,0.00276861]
[1760371535085,0.00212876,4148.7,4148.6,0.24976861]
[1760371535289,0.00212876,4148.7,4148.6,0.79436861]
[1760371535689,0.00212876,4148.7,4148.6,0.24976861]
[1760371536089,0.55232876,4148.7,4148.6,0.00276861]
[1760371536286,0.55232876,4148.7,4148.2,3.2078]
[1760371536287,0.43356,4148.3,4148.2,3.2078]
[1760371536496,0.5502,4147.8,4147.7,3.2078]
[1760371536794,0.5502,4147.8,4147.7,3.4548]
[1760371536994,0.5502,4147.8,4147.7,3.2078]
[1760371537192,0.5502,4147.8,4147.7,3.4548]
[1760371537390,0.5502,4147.8,4147.7,3.45702949]
[1760371537995,0.5502,4147.8,4147.7,3.21002949]
[1760371538193,0.98375,4148.4,4148.2,0.43357]
[1760371538487,3.75090992,4148.4,4148.2,0.43357]
[1760371538795,3.75090992,4148.4,4147.3,1.08416]
[1760371538796,0.5502,4147.8,4146.7,3.2078]
[1760371539094,0.1871,4148.0,4147.1,0.43368]
[1760371539095,0.43366,4147.4,4147.1,0.43368]
[1760371539406,0.98387,4147.3,4147.1,0.68068]
[1760371539584,0.5502,4147.2,4147.1,0.247]
[1760371539791,0.43367,4147.3,4147.1,0.247]
[1760371539792,3.11022832,4147.5,4147.3,0.43366]
[1760371539996,0.43361,4147.8,4147.5,0.43364]
[1760371540193,0.43365,4147.5,4147.3,0.97826]
[1760371540491,0.98385,4147.5,4147.4,0.247]
[1760371540688,0.5502,4147.2,4147.1,0.00172339]
[1760371540888,0.5502,4147.2,4147.1,0.24872339]
[1760371541684,3.2078,4147.7,4147.1,0.00172339]
[1760371541884,0.5502,4147.6,4147.2,0.247]
[1760371542089,3.758,4147.7,4147.3,0.7916]
[1760371542287,3.758,4147.7,4147.1,0.00172339]
[1760371542288,0.55232876,4148.7,4148.3,0.5446]
[1760371542499,0.55232876,4148.7,4148.6,0.5446]
[1760371542500,0.00212876,4148.7,4148.6,0.5446]
[1760371542695,3.2078,4149.7,4149.0,0.5446]
[1760371542898,0.5502,4149.4,4148.6,0.43352]
[1760371543186,0.98371,4148.8,4148.7,0.247]
[1760371543697,0.5502,4149.1,4148.7,0.247]
[1760371543897,0.43349,4149.0,4148.8,0.5446]
[1760371544089,0.98369,4149.0,4148.7,0.247]
[1760371544289,0.9837,4148.9,4148.7,0.247]
[1760371544689,0.5502,4148.8,4148.7,0.247]
[1760371545394,0.5502,4148.8,4148.3,0.247]
[1760371545395,0.5502,4148.7,4148.3,0.247]
[1760371545594,0.43357,4148.3,4147.8,0.43361]
[1760371545787,3.2078,4148.4,4147.5,3.2078]
[1760371545995,0.43363,4147.7,4147.5,3.2078]
[1760371546291,3.09214297,4147.6,4147.5,3.2078]
[1760371546488,3.64234297,4147.6,4147.5,3.2078]
[1760371547091,0.43367,4147.3,4147.1,0.00172339]
[1760371547292,0.5502,4147.2,4147.1,0.00172339]
[1760371547492,0.5502,4147.5,4147.3,0.43366]
[1760371547691,0.1508,4148.0,4147.1,0.00172339]
[1760371547901,0.5497,4147.2,4147.1,0.00172339]
[1760371548219,0.5497,4146.1,4146.0,3.2078]
[1760371549101,0.55195843,4146.1,4146.0,3.21081326]
[1760371549491,3.6224985,4146.1,4146.0,0.00301326]
[1760371549695,0.43388,4145.3,4145.2,0.247]
[1760371549903,0.43386,4145.5,4145.2,0.247]
[1760371550194,6.2805985,4146.1,4145.9,0.9925]